fUSD/lending_fUSD_20260224
["ID","MTS","AMOUNT","RATE_DAILY","PERIOD"]
[406560572,1771943451811,-225716.12989509,0.00045543,10]
[406560573,1771943452036,-157.78063153,0.000107,2]
[406560574,1771943452046,-500.0,0.00013698,2]
[406560575,1771943452056,-212.54133744,0.00013698,2]
[406560576,1771943452065,-385.23468108,0.00013949,2]
[406560577,1771943452074,-1339.0,0.00044611,2]
[406560578,1771943452084,-26236.12398469,0.00045543,10]
[406560579,1771943452647,-4844.98235974,0.00045543,10]
[406560580,1771943455893,-500.0,0.00016268,2]
[406560581,1771943491953,10000.01,9.998e-05,2]
[406560582,1771943491979,10000.01,9.998e-05,2]
[406560583,1771943492004,10000.01,9.998e-05,2]
[406560584,1771943492031,10000.01,9.998e-05,2]
[406560585,1771943492055,10000.01,9.998e-05,2]
[406560586,1771943492080,10000.01,9.998e-05,2]
[406560587,1771943492105,10000.01,9.998e-05,2]
[406560588,1771943492130,10000.01,9.998e-05,2]
[406560589,1771943492154,10000.01,9.998e-05,2]
[406560590,1771943492178,10000.01,9.998e-05,2]
[406560591,1771943521874,300.0,9.997e-05,2]
[406560593,1771943558787,5562.09619091,9.998e-05,2]
[406560594,1771943582382,150.0,9.997e-05,2]
[406560597,1771943613631,3987.91380909,9.898e-05,2]
[406560598,1771943613654,9441.98377865,9.898e-05,2]
[406560600,1771943628941,484.10314846,9.898e-05,2]
[406560601,1771943641391,300.0,9.997e-05,2]
[406560608,1771943701653,1200.0,9.997e-05,2]
[406560609,1771943701741,300.0,9.997e-05,2]
[406560610,1771943706982,3584.65048636,9.988e-05,2]
[406560611,1771943721080,472.12952606,9.997e-05,2]
[406560612,1771943728375,3659.12683912,9.898e-05,2]
[406560613,1771943728398,10000.01,9.898e-05,2]
[406560614,1771943728422,10000.01,9.898e-05,2]
[406560615,1771943728449,10000.01,9.898e-05,2]
[406560616,1771943728472,10000.01,9.898e-05,2]
[406560617,1771943728495,10000.01,9.898e-05,2]
[406560618,1771943728518,10000.01,9.898e-05,2]
[406560619,1771943728540,10000.01,9.898e-05,2]
[406560620,1771943728562,10000.01,9.898e-05,2]
[406560621,1771943761899,300.0,9.897e-05,2]
[406560622,1771943762260,150.0,9.897e-05,2]
[406560623,1771943763013,300.0,9.897e-05,2]
[406560624,1771943764557,6357.0,9.863e-05,2]
[406560625,1771943854783,2500.0,9.798e-05,2]
[406560626,1771943881382,300.0,9.897e-05,2]
[406560627,1771943914888,93.01,9.897e-05,2]
[406560628,1771943914914,76.06821736,9.897e-05,2]
[406560629,1771943914958,500.0,9.897e-05,2]
[406560630,1771943915053,160.81673383,9.897e-05,2]
[406560631,1771943917768,323.2704,9.897e-05,2]
[406560633,1771943942222,150.0,9.897e-05,2]
[406560634,1771943946342,1205.9102,9.798e-05,2]
[406560635,1771943983066,7583.94444881,9.798e-05,2]
[406560636,1771943983089,10000.01,9.798e-05,2]
[406560637,1771943983111,2232.04985119,9.798e-05,2]
[406560638,1771943990729,2500.0,9.798e-05,2]
[406560639,1771944001280,1200.0,9.897e-05,2]
[406560640,1771944001312,300.0,9.897e-05,2]
[406560641,1771944061532,300.0,9.897e-05,2]
[406560642,1771944092909,2179.954,9.7e-05,2]
[406560643,1771944093075,205.005,9.7e-05,2]
[406560644,1771944116569,1083.00114881,9.798e-05,2]
[406560645,1771944116599,10000.01,9.798e-05,2]
[406560646,1771944116626,10000.01,9.798e-05,2]
[406560647,1771944116654,10000.01,9.798e-05,2]
[406560648,1771944116681,10000.01,9.798e-05,2]
[406560649,1771944116708,10000.01,9.798e-05,2]
[406560650,1771944116734,10000.01,9.798e-05,2]
[406560651,1771944116761,10000.01,9.798e-05,2]
[406560652,1771944116787,10000.01,9.798e-05,2]
[406560653,1771944116813,10000.01,9.798e-05,2]
[406560654,1771944137699,-300.0,9.797e-05,2]
[406560655,1771944137729,-150.0,9.797e-05,2]
[406560656,1771944137759,-250.0,9.798e-05,2]
[406560657,1771944181403,300.0,9.797e-05,2]
[406560658,1771944201585,4852.1,9.798e-05,2]
[406560659,1771944221421,-196.73434621,9.798e-05,2]
[406560660,1771944221451,-4754.59644634,9.798e-05,2]
[406560661,1771944227334,653.3,6.136e-05,2]
[406560662,1771944227564,653.3,6.351e-05,2]
[406560663,1771944227775,653.3,6.566e-05,2]
[406560664,1771944228048,653.3,6.781e-05,2]
[406560665,1771944228246,653.3,6.997e-05,2]
[406560666,1771944228653,653.3,7.212e-05,2]
[406560667,1771944228775,653.3,7.427e-05,2]
[406560668,1771944229008,426.91,7.643e-05,2]
[406560669,1771944229030,226.39,7.643e-05,2]
[406560670,1771944229237,653.3,7.858e-05,2]
[406560671,1771944229481,653.3,8.073e-05,2]
[406560672,1771944229729,653.3,8.288e-05,2]
[406560673,1771944229982,653.3,8.504e-05,2]
[406560674,1771944230218,653.3,8.719e-05,2]
[406560675,1771944230428,653.3,8.934e-05,2]
[406560676,1771944230666,653.3,9.15e-05,2]
[406560677,1771944231184,200.52,9.365e-05,2]
[406560678,1771944231205,452.78,9.365e-05,2]
[406560679,1771944233519,-653.3,9.58e-05,2]
[406560680,1771944233548,-653.3,9.795e-05,2]
[406560681,1771944242642,-300.0,9.797e-05,2]
[406560682,1771944253850,462.57171368,9.797e-05,2]
[406560683,1771944259429,500.0,9.797e-05,2]
[406560684,1771944259460,500.0,9.797e-05,2]
[406560685,1771944259497,500.0,9.797e-05,2]
[406560686,1771944259529,625.95457302,9.797e-05,2]
[406560687,1771944259560,172.7620302,9.797e-05,2]
[406560688,1771944259870,574.08388385,9.797e-05,2]
[406560689,1771944260226,500.0,9.797e-05,2]
[406560690,1771944260714,500.0,9.797e-05,2]
[406560691,1771944260755,500.0,9.797e-05,2]
[406560692,1771944260799,500.0,9.797e-05,2]
[406560693,1771944260841,500.0,9.797e-05,2]
[406560694,1771944260883,500.0,9.797e-05,2]
[406560695,1771944260920,500.0,9.797e-05,2]
[406560696,1771944260968,500.0,9.797e-05,2]
[406560697,1771944261026,500.0,9.797e-05,2]
[406560698,1771944261069,500.0,9.797e-05,2]
[406560699,1771944261106,500.0,9.797e-05,2]
[406560700,1771944261147,500.0,9.797e-05,2]
[406560701,1771944261221,500.0,9.797e-05,2]
[406560702,1771944261260,164.63779925,9.797e-05,2]
[406560703,1771944270751,1120.39729549,9.797e-05,3]
[406560704,1771944285527,3700.0,9.7e-05,3]
[406560705,1771944287639,7400.0,9.8e-05,3]
[406560706,1771944289745,11200.0,9.9e-05,3]
[406560707,1771944292080,14900.0,0.0001,3]
[406560708,1771944293945,18600.0,0.000109,3]
[406560712,1771944447685,900.0,9.6e-05,3]
[406560713,1771944449786,1800.0,9.7e-05,3]
[406560716,1771944451887,2800.0,9.8e-05,3]
[406560717,1771944453991,3700.0,9.9e-05,3]
[406560718,1771944456094,4700.0,0.0001,3]
[406560719,1771944461224,314.0420863,9.5e-05,3]
[406560743,1771944631858,-1200.0,9.696e-05,2]
[406560744,1771944631868,-150.0,9.697e-05,2]
[406560745,1771944631877,-323.80019958,9.697e-05,2]
[406560746,1771944631886,-500.0,9.697e-05,2]
[406560747,1771944631895,-453.23638492,9.697e-05,2]
[406560748,1771944631905,-500.0,9.697e-05,2]
[406560749,1771944631914,-500.0,9.697e-05,2]
[406560750,1771944631924,-500.0,9.697e-05,2]
[406560751,1771944631933,-500.0,9.697e-05,2]
[406560752,1771944631942,-500.0,9.697e-05,2]
[406560753,1771944631951,-500.0,9.697e-05,2]
[406560754,1771944631960,-500.0,9.697e-05,2]
[406560755,1771944631970,-500.0,9.697e-05,2]
[406560756,1771944631980,-500.0,9.697e-05,2]
[406560757,1771944631989,-500.0,9.697e-05,2]
[406560758,1771944631998,-500.0,9.697e-05,2]
[406560759,1771944632008,-500.0,9.697e-05,2]
[406560760,1771944632017,-157.95253192,9.697e-05,2]
[406560761,1771944632026,-500.0,9.697e-05,2]
[406560763,1771944632035,-500.0,9.697e-05,2]
[406560765,1771944632044,-500.0,9.697e-05,2]
[406560766,1771944632053,-500.0,9.697e-05,2]
[406560767,1771944632062,-500.0,9.697e-05,2]
[406560768,1771944632072,-500.0,9.697e-05,2]
[406560769,1771944632080,-500.0,9.697e-05,2]
[406560770,1771944632089,-500.0,9.697e-05,2]
[406560771,1771944632098,-500.0,9.697e-05,2]
[406560772,1771944632107,-500.0,9.697e-05,2]
[406560773,1771944632116,-500.0,9.697e-05,2]
[406560777,1771944632125,-500.0,9.697e-05,2]
[406560779,1771944632134,-500.0,9.697e-05,2]
[406560782,1771944632143,-500.0,9.697e-05,2]
[406560784,1771944632152,-500.0,9.697e-05,2]
[406560786,1771944632160,-500.0,9.697e-05,2]
[406560788,1771944632170,-500.0,9.697e-05,2]
[406560789,1771944632179,-473.60318672,9.697e-05,2]
[406560790,1771944632190,-26.39681328,9.697e-05,2]
[406560791,1771944632198,-500.0,9.697e-05,2]
[406560792,1771944632207,-500.0,9.697e-05,2]
[406560793,1771944632216,-500.0,9.697e-05,2]
[406560794,1771944632225,-500.0,9.697e-05,2]
[406560795,1771944632236,-500.0,9.697e-05,2]
[406560796,1771944632245,-500.0,9.697e-05,2]
[406560797,1771944632254,-353.20318672,9.697e-05,2]
[406560798,1771944632267,-146.79681328,9.697e-05,2]
[406560799,1771944632277,-500.0,9.697e-05,2]
[406560800,1771944632287,-500.0,9.697e-05,2]
[406560801,1771944632296,-500.0,9.697e-05,2]
[406560802,1771944632305,-500.0,9.697e-05,2]
[406560803,1771944632314,-500.0,9.697e-05,2]
[406560804,1771944632323,-500.0,9.697e-05,2]
[406560805,1771944632332,-347.64566171,9.697e-05,2]
[406560806,1771944632343,-152.35433829,9.697e-05,2]
[406560807,1771944632351,-500.0,9.697e-05,2]
[406560808,1771944632360,-500.0,9.697e-05,2]
[406560809,1771944632369,-500.0,9.697e-05,2]
[406560810,1771944632379,-500.0,9.697e-05,2]
[406560811,1771944632388,-500.0,9.697e-05,2]
[406560812,1771944632397,-500.0,9.697e-05,2]
[406560813,1771944632407,-500.0,9.697e-05,2]
[406560814,1771944632416,-500.0,9.697e-05,2]
[406560815,1771944632425,-500.0,9.697e-05,2]
[406560816,1771944632434,-500.0,9.697e-05,2]
[406560817,1771944632443,-500.0,9.697e-05,2]
[406560818,1771944632452,-500.0,9.697e-05,2]
[406560819,1771944632461,-500.0,9.697e-05,2]
[406560820,1771944632470,-500.0,9.697e-05,2]
[406560821,1771944632480,-500.0,9.697e-05,2]
[406560822,1771944632490,-500.0,9.697e-05,2]
[406560823,1771944632501,-500.0,9.697e-05,2]
[406560824,1771944632511,-500.0,9.697e-05,2]
[406560825,1771944632520,-500.0,9.697e-05,2]
[406560826,1771944632529,-500.0,9.697e-05,2]
[406560827,1771944632541,-500.0,9.697e-05,2]
[406560828,1771944632550,-500.0,9.697e-05,2]
[406560829,1771944632559,-500.0,9.697e-05,2]
[406560830,1771944632569,-1669.66752904,9.698e-05,2]
[406560831,1771944632579,-196.7343462,9.698e-05,2]
[406560832,1771944632588,-3169.73096422,9.698e-05,2]
[406560833,1771944632598,-95078.06683924,9.698e-05,2]
[406560834,1771944632611,-14165.42518056,9.698e-05,2]
[406560835,1771944632622,-53038.86914274,9.698e-05,2]
[406560836,1771944632633,-49486.26331532,9.698e-05,2]
[406560839,1771944638586,-3288231.37552214,9.698e-05,2]
[406560840,1771944638599,-2500.0,9.698e-05,2]
[406560841,1771944638609,-557.8906,9.698e-05,2]
[406560842,1771944638619,-500.0,9.698e-05,2]
[406560843,1771944638630,-200.0,9.73e-05,2]
[406560844,1771944638640,-250.0,9.747e-05,2]
[406560845,1771944638651,-257776.17886088,9.898e-05,2]
[406560846,1771944638661,-500.0,9.972e-05,2]
[406560847,1771944638671,-1000.0,9.998e-05,2]
[406560848,1771944638682,-10000.0,9.998e-05,2]
[406560849,1771944638692,-500.0,9.998e-05,2]
[406560850,1771944638702,-1015.11,0.0001,2]
[406560851,1771944638712,-151.0,0.0001,2]
[406560852,1771944638722,-151.0,0.0001,2]
[406560853,1771944638732,-151.0,0.0001,2]
[406560854,1771944638742,-151.0,0.0001,2]
[406560855,1771944638752,-151.0,0.0001,2]
[406560856,1771944638762,-151.0,0.0001,2]
[406560857,1771944638773,-151.0,0.0001,2]
[406560858,1771944638783,-151.0,0.0001,2]
[406560859,1771944638793,-151.0,0.0001,2]
[406560860,1771944638803,-151.0,0.0001,2]
[406560861,1771944638814,-151.0,0.0001,2]
[406560862,1771944638824,-151.0,0.0001,2]
[406560863,1771944638835,-151.0,0.0001,2]
[406560864,1771944638844,-151.0,0.0001,2]
[406560865,1771944638855,-279.15108898,0.0001,2]
[406560866,1771944638865,-272.21776658,0.0001,2]
[406560867,1771944638874,-272.21776658,0.0001,2]
[406560868,1771944638884,-653.3,0.00010011,2]
[406560869,1771944638894,-6018.23,0.00010102,2]
[406560870,1771944638904,-344.0,0.00010146,2]
[406560871,1771944638914,-410.0,0.00010167,2]
[406560872,1771944638923,-484.0,0.00010187,2]
[406560874,1771944638934,-1195.0,0.00010194,2]
[406560876,1771944638944,-621.0,0.00010215,2]
[406560878,1771944638953,-653.3,0.00010226,2]
[406560880,1771944638963,-1508.0,0.00010235,2]
[406560882,1771944638975,-166.66,0.00010238,2]
[406560884,1771944638985,-500.0,0.00010246,2]
[406560886,1771944638995,-1616.0,0.00010255,2]
[406560888,1771944639005,-1015.11,0.00010274,2]
[406560890,1771944639014,-500.0,0.0001052,2]
[406560892,1771944639025,-1015.11,0.00010548,2]
[406560894,1771944639035,-2190.8,0.00010552,2]
[406560896,1771944639045,-9999.99,0.00010552,2]
[406560898,1771944639056,-299.99,0.00010552,2]
[406560900,1771944639066,-1185.85,0.00010552,2]
[406560902,1771944639076,-500.0,0.00010573,2]
[406560904,1771944639086,-500.0,0.00010573,2]
[406560906,1771944639095,-500.0,0.00010573,2]
[406560908,1771944639105,-500.0,0.00010573,2]
[406560910,1771944639115,-500.0,0.00010573,2]
[406560911,1771944639124,-500.0,0.00010573,2]
[406560913,1771944639134,-500.0,0.00010573,2]
[406560915,1771944639144,-500.0,0.00010573,2]
[406560917,1771944639154,-500.0,0.00010573,2]
[406560919,1771944639165,-500.0,0.00010573,2]
[406560921,1771944639175,-500.0,0.00010573,2]
[406560923,1771944639185,-500.0,0.00010573,2]
[406560925,1771944639194,-500.0,0.00010573,2]
[406560927,1771944639205,-166.66,0.00010576,2]
[406560929,1771944639215,-634.69509661,0.00010619,2]
[406560931,1771944639225,-9999.99,0.00010619,2]
[406560933,1771944639235,-3838.62,0.00010619,2]
[406560935,1771944639245,-4999.99,0.00010619,2]
[406560937,1771944639254,-347.97,0.00010619,2]
[406560939,1771944639265,-1680.0,0.00010666,2]
[406560941,1771944639275,-250.0,0.00010667,2]
[406560943,1771944639285,-255.0,0.00010667,2]
[406560945,1771944639295,-250.0,0.00010668,2]
[406560947,1771944639306,-10156.31,0.00010735,2]
[406560949,1771944639316,-9999.99,0.00010735,2]
[406560951,1771944639326,-9999.99,0.00010735,2]
[406560952,1771944639336,-306.28,0.00010735,2]
[406560953,1771944639346,-999.99,0.00010735,2]
[406560954,1771944639356,-150.99,0.00010735,2]
[406560955,1771944639367,-9999.99,0.00010735,2]
[406560956,1771944639378,-150.99,0.00010735,2]
[406560957,1771944639389,-193.0,0.00010776,2]
[406560958,1771944639399,-500.0,0.00010794,2]
[406560959,1771944639409,-312.72,0.000108,2]
[406560960,1771944639420,-506.55,0.000108,2]
[406560961,1771944639430,-500.0,0.000108,2]
[406560962,1771944639440,-537.34688951,0.000108,2]
[406560963,1771944639450,-500.0,0.000108,2]
[406560964,1771944639460,-699.99,0.000108,2]
[406560965,1771944639470,-600.0,0.000108,2]
[406560966,1771944639480,-800.0,0.000108,2]
[406560967,1771944639490,-600.0,0.000108,2]
[406560968,1771944639502,-800.0,0.000108,2]
[406560969,1771944639512,-600.0,0.000108,2]
[406560970,1771944639522,-800.0,0.000108,2]
[406560971,1771944639532,-800.0,0.000108,2]
[406560972,1771944639543,-600.0,0.000108,2]
[406560973,1771944639553,-800.0,0.000108,2]
[406560974,1771944639563,-600.0,0.000108,2]
[406560975,1771944639573,-800.0,0.000108,2]
[406560976,1771944639583,-600.0,0.000108,2]
[406560977,1771944639594,-800.0,0.000108,2]
[406560978,1771944639604,-600.0,0.000108,2]
[406560979,1771944639614,-800.0,0.000108,2]
[406560980,1771944639624,-600.0,0.000108,2]
[406560981,1771944639634,-610.81241278,0.000108,2]
[406560982,1771944639644,-500.0,0.000108,2]
[406560983,1771944639654,-800.0,0.000108,2]
[406560984,1771944639664,-600.0,0.000108,2]
[406560985,1771944639674,-501.33994508,0.000108,2]
[406560986,1771944639683,-800.0,0.000108,2]
[406560987,1771944639694,-600.0,0.000108,2]
[406560988,1771944639704,-800.0,0.000108,2]
[406560989,1771944639713,-600.0,0.000108,2]
[406560990,1771944639723,-500.0,0.000108,2]
[406560991,1771944639734,-600.0,0.000108,2]
[406560992,1771944639743,-800.0,0.000108,2]
[406560993,1771944639752,-889.732786,0.000108,2]
[406560995,1771944639762,-800.0,0.000108,2]
[406560997,1771944639771,-1100.0,0.000108,2]
[406560998,1771944639780,-500.0,0.000108,2]
[406560999,1771944639789,-500.0,0.000108,2]
[406561000,1771944639798,-1068.51170222,0.000108,2]
[406561001,1771944639807,-500.0,0.000108,2]
[406561002,1771944639817,-500.0,0.000108,2]
[406561003,1771944639826,-500.0,0.000108,2]
[406561004,1771944639836,-500.0,0.000108,2]
[406561005,1771944639845,-500.0,0.000108,2]
[406561006,1771944639854,-500.0,0.000108,2]
[406561007,1771944639864,-500.0,0.000108,2]
[406561008,1771944639875,-500.0,0.000108,2]
[406561009,1771944639885,-500.0,0.000108,2]
[406561010,1771944639895,-500.0,0.000108,2]
[406561011,1771944639904,-500.0,0.000108,2]
[406561012,1771944639915,-500.0,0.000108,2]
[406561013,1771944639925,-500.0,0.000108,2]
[406561014,1771944639935,-500.0,0.000108,2]
[406561015,1771944639945,-500.0,0.000108,2]
[406561016,1771944639954,-500.0,0.000108,2]
[406561017,1771944639965,-500.0,0.000108,2]
[406561018,1771944639976,-1600.0,0.000108,2]
[406561019,1771944639985,-500.0,0.000108,2]
[406561020,1771944639995,-500.0,0.000108,2]
[406561021,1771944640004,-704.38882443,0.000108,2]
[406561022,1771944640014,-1600.0,0.000108,2]
[406561023,1771944640023,-918.40902476,0.000108,2]
[406561024,1771944640032,-500.0,0.000108,2]
[406561025,1771944640042,-500.0,0.000108,2]
[406561026,1771944640051,-1600.0,0.000108,2]
[406561027,1771944640060,-801.1773829,0.000108,2]
[406561028,1771944640070,-500.0,0.000108,2]
[406561029,1771944640080,-500.0,0.000108,2]
[406561030,1771944640089,-1600.0,0.000108,2]
[406561031,1771944640098,-500.0,0.000108,2]
[406561032,1771944640107,-500.0,0.000108,2]
[406561033,1771944640336,-1600.0,0.000108,2]
[406561034,1771944640346,-500.0,0.000108,2]
[406561035,1771944640355,-500.0,0.000108,2]
[406561036,1771944640364,-1600.0,0.000108,2]
[406561037,1771944640374,-500.0,0.000108,2]
[406561038,1771944640383,-500.0,0.000108,2]
[406561039,1771944640393,-1600.0,0.000108,2]
[406561040,1771944640402,-500.0,0.000108,2]
[406561041,1771944640411,-500.0,0.000108,2]
[406561042,1771944640420,-500.0,0.000108,2]
[406561043,1771944640430,-1600.0,0.000108,2]
[406561044,1771944640439,-500.0,0.000108,2]
[406561045,1771944640448,-500.0,0.000108,2]
[406561046,1771944640457,-500.0,0.000108,2]
[406561047,1771944640467,-1600.0,0.000108,2]
[406561048,1771944640475,-500.0,0.000108,2]
[406561049,1771944640485,-500.0,0.000108,2]
[406561050,1771944640495,-500.71112286,0.000108,2]
[406561051,1771944640505,-1600.0,0.000108,2]
[406561052,1771944640515,-500.0,0.000108,2]
[406561053,1771944640524,-500.0,0.000108,2]
[406561054,1771944640535,-500.0,0.000108,2]
[406561055,1771944640546,-500.0,0.000108,2]
[406561056,1771944640556,-1600.0,0.000108,2]
[406561057,1771944640566,-500.0,0.000108,2]
[406561058,1771944640576,-500.0,0.000108,2]
[406561059,1771944640587,-1600.0,0.000108,2]
[406561060,1771944640596,-500.0,0.000108,2]
[406561061,1771944640606,-500.0,0.000108,2]
[406561062,1771944640616,-1600.0,0.000108,2]
[406561063,1771944640626,-500.0,0.000108,2]
[406561064,1771944640635,-1818.2084599,0.000108,2]
[406561065,1771944640645,-500.0,0.000108,2]
[406561066,1771944640655,-823.91748752,0.000108,2]
[406561067,1771944640665,-500.0,0.000108,2]
[406561068,1771944640674,-500.0,0.000108,2]
[406561069,1771944640684,-500.0,0.000108,2]
[406561070,1771944640694,-500.0,0.000108,2]
[406561071,1771944640703,-500.0,0.000108,2]
[406561073,1771944640713,-653.71723476,0.000108,2]
[406561074,1771944640723,-1015.11,0.00010822,2]
[406561075,1771944640733,-166.66,0.00010914,2]
[406561076,1771944640743,-16914.87,0.00010959,2]
[406561077,1771944640751,-500.0,0.00011068,2]
[406561078,1771944640761,-1015.11,0.00011096,2]
[406561079,1771944640771,-28680.03179139,0.00011099,2]
[406561080,1771944640780,-33639.79686267,0.00011099,2]
[406561081,1771944640790,-550.01264972,0.00011121,2]
[406561082,1771944640799,-501.70650637,0.00011121,2]
[406561083,1771944640808,-1000.0,0.00011121,2]
[406561084,1771944640817,-1000.0,0.00011121,2]
[406561085,1771944640827,-1000.0,0.00011121,2]
[406561086,1771944640837,-1000.0,0.00011121,2]
[406561087,1771944640846,-1000.0,0.00011121,2]
[406561088,1771944640855,-1000.0,0.00011121,2]
[406561089,1771944640865,-1000.0,0.00011121,2]
[406561090,1771944640874,-1002.25561136,0.00011121,2]
[406561091,1771944640883,-501.90132287,0.00011121,2]
[406561092,1771944640892,-235.93365693,0.00011121,2]
[406561093,1771944640902,-328.54094648,0.00011121,2]
[406561094,1771944640911,-152.78,0.00011233,2]
[406561095,1771944640920,-166.66,0.00011252,2]
[406561096,1771944640929,-500.0,0.00011342,2]
[406561097,1771944640938,-1015.11,0.0001137,2]
[406561098,1771944640947,-577.6685762,0.00011414,2]
[406561099,1771944640956,-166.66,0.0001159,2]
[406561100,1771944640965,-500.0,0.00011616,2]
[406561101,1771944640974,-1015.11,0.00011644,2]
[406561102,1771944640984,-1500.0,0.00011668,2]
[406561103,1771944640994,-1276.82336401,0.00011668,2]
[406561104,1771944641015,-871.93707751,0.00011668,2]
[406561105,1771944641024,-1500.0,0.00011668,2]
[406561106,1771944641034,-1500.0,0.00011668,2]
[406561107,1771944641043,-527.71923747,0.00011668,2]
[406561108,1771944641054,-1500.0,0.00011668,2]
[406561109,1771944641064,-2351.0,0.00011732,2]
[406561110,1771944641073,-433.0,0.00011733,2]
[406561111,1771944641082,-500.0,0.0001189,2]
[406561112,1771944641093,-1015.12950757,0.00011918,2]
[406561113,1771944641102,-166.66,0.00011928,2]
[406561114,1771944641111,-33639.79686262,0.00011948,2]
[406561115,1771944641120,-28680.03179139,0.00011959,2]
[406561116,1771944641129,-614.0,0.00012004,2]
[406561117,1771944641139,-500.0,0.00012164,2]
[406561118,1771944641148,-2000.0,0.00012216,2]
[406561119,1771944641158,-2000.0,0.00012216,2]
[406561120,1771944641167,-2000.0,0.00012216,2]
[406561121,1771944641176,-503.87713345,0.00012216,2]
[406561122,1771944641186,-500.0,0.00012438,2]
[406561123,1771944641196,-169.2,0.00012535,2]
[406561124,1771944641205,-500.0,0.00012712,2]
[406561125,1771944641214,-374.73958587,0.00012764,2]
[406561126,1771944641224,-2500.0,0.00012764,2]
[406561127,1771944641234,-2500.0,0.00012764,2]
[406561128,1771944641243,-250.0,0.00012813,2]
[406561129,1771944641253,-3292.0,0.00012905,2]
[406561130,1771944641262,-736.0,0.00012907,2]
[406561131,1771944641271,-291.85083956,0.00012986,2]
[406561132,1771944641280,-500.0,0.0001321,2]
[406561133,1771944641289,-500.0,0.0001321,2]
[406561134,1771944641299,-500.0,0.0001321,2]
[406561135,1771944641308,-800.0,0.0001321,2]
[406561136,1771944641318,-600.0,0.0001321,2]
[406561137,1771944641327,-800.0,0.0001321,2]
[406561138,1771944641338,-500.0,0.0001321,2]
[406561139,1771944641348,-600.0,0.0001321,2]
[406561140,1771944641357,-800.0,0.0001321,2]
[406561141,1771944641366,-500.0,0.0001321,2]
[406561142,1771944641375,-600.0,0.0001321,2]
[406561143,1771944641384,-800.0,0.0001321,2]
[406561144,1771944641394,-500.0,0.0001321,2]
[406561145,1771944641403,-600.0,0.0001321,2]
[406561146,1771944641412,-800.0,0.0001321,2]
[406561147,1771944641421,-600.0,0.0001321,2]
[406561148,1771944641430,-800.0,0.0001321,2]
[406561149,1771944641440,-600.0,0.0001321,2]
[406561150,1771944641449,-800.0,0.0001321,2]
[406561151,1771944641458,-600.0,0.0001321,2]
[406561152,1771944641467,-800.0,0.0001321,2]
[406561153,1771944641476,-600.0,0.0001321,2]
[406561154,1771944641485,-800.0,0.0001321,2]
[406561155,1771944641499,-600.0,0.0001321,2]
[406561156,1771944641508,-800.0,0.0001321,2]
[406561157,1771944641517,-600.0,0.0001321,2]
[406561158,1771944641526,-800.0,0.0001321,2]
[406561159,1771944641537,-600.0,0.0001321,2]
[406561160,1771944641547,-800.0,0.0001321,2]
[406561161,1771944641556,-600.0,0.0001321,2]
[406561162,1771944641566,-800.0,0.0001321,2]
[406561163,1771944641575,-600.0,0.0001321,2]
[406561164,1771944641585,-800.0,0.0001321,2]
[406561165,1771944641597,-500.0,0.0001321,2]